bitfinex-derivatives/quotes_SOLF0:USTF0_20251229
["timestamp","ask_amount","ask_price","bid_price","bid_amount"]
[1766979181166,0.00406762,128.86,128.84,18.39287853]
[1766979181348,0.00406762,128.86,128.84,0.05287853]
[1766979181954,0.00406762,128.86,128.8,25.3338]
[1766979183065,0.00406762,128.86,128.82,0.05346899]
[1766979183267,0.00406762,128.86,128.82,18.39346899]
[1766979184051,0.00406762,128.86,128.82,0.05346899]
[1766979184363,17.11406762,128.86,128.82,0.05346899]
[1766979190258,0.00406762,128.86,128.82,18.39346899]
[1766979190770,0.00406762,128.86,128.82,0.05346899]
[1766979197168,0.00406762,128.86,128.82,17.91346899]
[1766979197376,0.00406762,128.86,128.83,24.8522]
[1766979197570,0.00406762,128.86,128.83,17.86]
[1766979198675,0.00406762,128.86,128.85,17.86]
[1766979198877,18.18,128.94,128.85,17.86]
[1766979199777,0.0500418,128.91,128.88,0.0554854]
[1766979203678,18.2300418,128.91,128.88,0.0554854]
[1766979203883,18.2300418,128.91,128.85,17.86]
[1766979204670,0.0500418,128.91,128.85,17.86]
[1766979204871,0.0500418,128.91,128.87,0.05699564]
[1766979205179,0.05256157,128.9,128.87,0.05699564]
[1766979206581,18.23256157,128.9,128.87,0.05699564]
[1766979208284,0.05256157,128.9,128.87,0.05699564]
[1766979216288,18.18,128.95,128.87,22.31655848]
[1766979216498,18.18,128.95,128.87,22.25956284]
[1766979216888,18.18,128.95,128.89,17.86]
[1766979217390,0.05669304,128.93,128.91,0.05634996]
[1766979218897,18.23669304,128.93,128.85,24.851]
[1766979219094,18.18,128.93,128.85,24.851]
[1766979219494,18.18,128.93,128.86,17.86]
[1766979219792,0.05924923,128.91,128.88,0.04880149]
[1766979220193,18.23924923,128.91,128.82,17.86]
[1766979220388,18.18,128.91,128.82,17.86]
[1766979221401,18.23322078,128.88,128.82,17.86]
[1766979221689,22.57956284,128.88,128.79,24.8543]
[1766979221887,22.57956284,128.88,128.8,17.86]
[1766979222284,0.0550249,128.85,128.83,0.05669759]
[1766979222892,2.81529761,128.88,128.83,0.05669759]
[1766979223190,2.81529761,129.01,128.88,17.86]
[1766979223394,18.18,129.05,128.97,17.86]
[1766979223598,20.99529761,129.02,128.94,17.86]
[1766979223989,0.05956936,128.99,128.97,0.05431086]
[1766979225280,0.05956936,128.99,128.91,7.23670525]
[1766979225281,20.30956936,128.99,128.91,18.78]
[1766979225481,2.81529761,128.98,128.91,18.78]
[1766979225889,2.81529761,128.98,128.88,28.58499761]
[1766979225890,23.06529761,128.98,128.88,28.58499761]
[1766979226196,2.81529761,128.97,128.89,18.78]
[1766979226397,0.05290897,128.94,128.92,0.05079359]
[1766979229508,0.00290897,128.94,128.92,27.9203661]
[1766979229789,20.25,129.04,128.94,18.78]
[1766979230489,20.25,129.02,128.91,18.78]
[1766979230896,20.25,129.01,128.91,18.78]
[1766979231087,0.05297191,128.98,128.95,0.05557194]
[1766979231889,20.30297191,128.98,128.9,18.78]
[1766979232096,20.25,128.98,128.87,18.78]
[1766979232592,20.25,128.98,128.88,19.33]
[1766979232999,0.05885402,128.94,128.92,0.05629439]
[1766979233394,20.25,128.98,128.92,0.05629439]
[1766979234702,19.98,129.01,128.92,19.38629439]
[1766979234998,19.98,129.01,128.92,19.33]
[1766979235797,0.05453522,128.98,128.95,0.05140245]
[1766979239004,0.05453522,128.98,128.95,0.00140245]
[1766979241210,0.00453522,128.98,128.95,19.33140245]
[1766979242198,0.00453522,128.98,128.95,26.86097496]
[1766979242400,19.98,129.06,128.96,19.33]
[1766979242606,19.98,129.04,128.96,19.33]
[1766979243210,19.98,129.04,128.93,33.84647251]
[1766979243403,0.05960059,129.0,128.97,0.0556342]
[1766979247604,0.05960059,129.0,128.91,19.33]
[1766979247605,20.03960059,129.0,128.91,19.33]
[1766979247798,19.98,129.0,128.91,19.33]
[1766979248514,0.05083361,128.97,128.94,0.04916572]
[1766979256224,19.68083361,128.97,128.89,20.24]
[1766979256409,19.63,128.97,128.89,20.24]
[1766979256926,19.63,128.97,128.87,7.23670525]
[1766979256927,19.63,128.97,128.87,20.24]
[1766979257430,0.05400666,128.93,128.91,0.04893549]
[1766979257729,0.05139404,128.93,128.91,0.0553339]
[1766979258231,19.68139404,128.93,128.85,20.24]
[1766979258417,19.63,128.93,128.85,20.24]
[1766979258618,166.27,129.02,128.85,20.24]
[1766979258619,19.63,128.96,128.85,20.24]
[1766979259325,0.05618863,128.92,128.89,0.05709749]
[1766979263823,19.68618863,128.92,128.85,20.24]
[1766979264915,19.68618863,128.92,128.87,0.05152078]
[1766979266130,19.68618863,128.92,128.87,20.29152078]
[1766979266131,0.05618863,128.92,128.87,20.29152078]
[1766979269729,19.63,128.97,128.88,20.24]
[1766979270835,0.0567511,128.94,128.91,0.05148957]
[1766979273132,19.6867511,128.94,128.86,27.2312]
[1766979273334,19.63,128.94,128.86,27.2312]
[1766979274337,0.05881299,128.91,128.89,0.05625935]
[1766979276338,19.68881299,128.91,128.83,23.05196806]
[1766979276539,19.63,128.91,128.83,23.05196806]
[1766979276934,19.63,128.91,128.83,27.2332]
[1766979277239,0.05668979,128.88,128.86,0.05779871]
[1766979281248,19.68668979,128.88,128.82,23.05196806]
[1766979281444,19.63,128.88,128.82,23.05196806]
[1766979282447,0.05225113,128.86,128.84,0.05901986]
[1766979282639,19.68225113,128.86,128.79,24.63775296]
[1766979282838,19.68225113,128.86,128.79,20.24]
[1766979283045,19.68225113,128.86,128.77,20.24]
[1766979283242,19.63,128.86,128.77,20.24]
[1766979283645,0.05287157,128.83,128.8,0.0567654]
[1766979286449,0.00287157,128.83,128.8,20.2467654]
[1766979289455,19.41,128.9,128.81,20.19]
[1766979290452,19.41,128.9,128.82,20.19]
[1766979290646,0.05823303,128.87,128.84,0.05007483]
[1766979291557,19.41,128.9,128.84,20.24007483]
[1766979292554,20.70718199,128.88,128.84,0.05007483]
[1766979292742,20.70718199,128.88,128.85,0.05372431]
[1766979294259,20.70718199,128.88,128.85,0.00372431]
[1766979295053,20.70718199,128.88,128.81,20.37]
[1766979295247,20.70718199,128.88,128.79,20.37]
[1766979295447,20.65,128.88,128.79,20.37]
[1766979295663,20.65,128.86,128.77,6.9961]
[1766979295955,20.65,128.86,128.74,20.37]
[1766979296152,12.25541897,128.89,128.79,0.05060929]
[1766979296153,0.04991806,128.81,128.79,0.05060929]
[1766979296456,0.05158381,128.81,128.79,0.05000279]
[1766979300254,0.00158381,128.81,128.79,0.05000279]
[1766979301353,20.65,128.88,128.79,7.04520279]
[1766979301558,20.65,128.88,128.8,20.37]
[1766979302254,20.65,128.88,128.81,20.37]
[1766979302455,20.65,128.9,128.81,20.37]
[1766979302659,0.05251153,128.86,128.83,0.05265945]
[1766979311364,0.00251153,128.86,128.83,20.42265945]
[1766979312553,20.65,128.92,128.83,20.42265945]
[1766979312757,20.65,128.92,128.83,20.37]
[1766979313560,0.05748864,128.89,128.86,0.05121105]
[1766979315573,20.65,128.92,128.86,20.12121105]
[1766979316667,0.05765558,128.9,128.86,27.11271105]
[1766979318764,1.98251458,128.94,128.89,20.07]
[1766979319573,21.77251458,128.94,128.85,27.30670525]
[1766979319774,0.0588307,128.91,128.88,0.04968619]
[1766979321567,19.8488307,128.91,128.83,27.30670525]
[1766979321772,19.79,128.91,128.84,20.07]
[1766979322572,0.05632991,128.89,128.86,0.05025868]
[1766979325873,19.84632991,128.89,128.86,0.00025868]
[1766979326969,19.84632991,128.89,128.8,20.07]
[1766979327173,19.79,128.89,128.8,20.07]
[1766979327974,0.05385945,128.86,128.83,0.05128371]
[1766979332876,23.32,129.03,128.83,20.12128371]
[1766979333084,19.79,129.08,128.91,7.23415808]
[1766979333373,1.34928174,129.1,128.95,7.23415808]
[1766979333571,21.13928174,129.1,128.96,19.47913426]
[1766979333772,21.13928174,129.1,128.93,32.96894033]
[1766979333773,19.79,129.1,128.93,32.96894033]
[1766979333975,19.79,129.1,128.98,7.21187534]
[1766979334176,19.79,129.15,129.01,20.07]
[1766979334379,19.79,129.15,129.01,12.24497618]
[1766979334570,19.79,129.15,129.05,20.07]
[1766979335075,3.69066939,129.2,129.07,12.24497618]
[1766979335279,3.69066939,129.2,129.08,20.07]
[1766979336074,23.48066939,129.2,129.08,20.07]
[1766979336278,23.48066939,129.2,129.06,20.07]
[1766979336677,23.48066939,129.2,129.12,0.05144398]
[1766979336878,23.48066939,129.2,129.08,20.07]
[1766979337777,0.00107249,129.15,129.13,0.05582334]
[1766979337978,23.48066939,129.2,129.13,20.12582334]
[1766979337979,3.69066939,129.2,129.13,20.12582334]
[1766979338178,7.18667081,129.19,129.13,20.12582334]
[1766979338381,7.081e-05,129.18,129.13,20.12582334]
[1766979338576,4.02e-05,129.2,129.13,20.12582334]
[1766979338780,4.02e-05,129.2,129.13,111.80582334]
[1766979339087,0.00035291,129.18,129.14,20.07]
[1766979339675,0.00035291,129.18,129.08,20.07]
[1766979339877,0.05294221,129.14,129.12,0.05093554]
[1766979340078,4.02e-05,129.2,129.1,20.07]
[1766979340280,4.02e-05,129.2,129.12,20.12186496]
[1766979340485,4.02e-05,129.2,129.12,20.07]
[1766979340985,19.7900402,129.2,129.12,20.07]
[1766979341284,4.02e-05,129.2,129.15,0.05397512]
[1766979342177,4.02e-05,129.2,129.09,84.6283279]
[1766979342498,4.02e-05,129.2,129.07,108.578]
[1766979342784,4.02e-05,129.2,129.1,103.86497618]
[1766979343081,4.02e-05,129.2,129.14,0.04898566]
[1766979343082,0.05011076,129.16,129.14,0.04898566]
[1766979343284,4.02e-05,129.2,129.14,0.04898566]
[1766979344383,19.82345501,129.18,129.08,3.65]
[1766979344578,19.79,129.18,129.05,3.74]
[1766979345388,19.79,129.18,129.1,3.85420874]
[1766979345582,19.79,129.18,129.1,3.8]
[1766979345889,20.34,129.17,129.04,95.49]
[1766979346188,20.34,129.17,129.04,3.89]
[1766979346391,0.03250343,129.12,129.09,0.05866218]
[1766979346591,0.03250343,129.12,129.09,0.05609533]
[1766979347588,20.37250343,129.12,129.02,4.06]
[1766979347894,20.34,129.12,129.02,4.06]
[1766979348793,20.34,129.12,129.06,0.05817925]
[1766979349691,0.02991156,129.1,129.06,0.05817925]
[1766979350491,7.30335149,129.09,129.0,11.2139]
[1766979350683,7.30335149,129.08,129.01,4.32]
[1766979350884,7.30335149,129.07,129.01,4.32]
[1766979351090,7.30335149,129.06,129.01,4.32]
[1766979351383,4.96146902,129.05,129.02,0.05856368]
[1766979351589,0.0560169,129.05,129.02,0.04881145]
[1766979352194,20.34,129.15,129.03,4.2828891]
[1766979352491,20.34,129.14,129.03,7.50447444]
[1766979353197,0.0320739,129.1,129.07,0.05150262]
[1766979354295,0.0320739,129.1,129.03,3.67369442]
[1766979354599,20.34,129.14,129.03,3.67369442]
[1766979355188,20.39903787,129.1,128.97,7.50447444]
[1766979355387,4.02e-05,129.2,129.0,6.9839]
[1766979355592,20.34,129.13,129.0,7.50447444]
[1766979355791,20.34,129.12,129.0,7.50447444]
[1766979356302,0.0541976,129.07,129.05,0.05037221]
[1766979356500,20.34,129.12,129.01,6.983]
[1766979356805,20.34,129.16,129.03,3.92]
[1766979356998,20.34,129.16,129.04,3.92]
[1766979357299,20.34,129.16,129.03,7.50447444]
[1766979357498,4.02e-05,129.2,129.08,0.05207073]
[1766979357699,4.02e-05,129.2,129.06,7.50447444]
[1766979357899,21.83,129.19,128.98,108.652]
[1766979358102,21.83,129.19,129.04,7.50447444]
[1766979358494,0.05952382,129.13,129.1,0.04979199]
[1766979358791,0.05085464,129.13,129.1,0.05154822]
[1766979360501,0.00085464,129.13,129.1,0.05154822]
[1766979360705,4.02e-05,129.2,129.11,0.33]
[1766979361008,4.02e-05,129.2,129.14,7.3059]
[1766979361308,4.02e-05,129.2,129.14,0.33]
[1766979361694,4.02e-05,129.2,129.15,6.9756]
[1766979362004,4.02e-05,129.2,129.16,0.05411491]
[1766979363005,0.027839,129.19,129.16,0.05411491]
[1766979363206,0.027839,129.19,129.11,0.42]
[1766979363402,4.02e-05,129.2,129.11,0.42]
[1766979363903,4.02e-05,129.2,129.11,7.3976]
[1766979364305,0.05784048,129.17,129.14,0.05714642]
[1766979364712,21.88784048,129.17,129.08,0.63]
[1766979364900,21.83,129.17,129.08,0.63]
[1766979365206,4.02e-05,129.2,129.09,0.69]
[1766979365410,4.02e-05,129.2,129.1,6.9781]
[1766979365602,4.02e-05,129.2,129.1,7.7481]
[1766979365802,0.05856758,129.16,129.14,0.05136496]
[1766979365998,0.05856758,129.16,129.14,0.00136496]
[1766979366202,0.05856758,129.16,129.15,0.00206115]
[1766979367099,0.05856758,129.16,129.09,7.84]
[1766979367504,0.05856758,129.16,129.07,7.50447444]
[1766979367808,21.83,129.16,129.06,8.04]
[1766979368108,4.02e-05,129.2,129.09,8.04]
[1766979368109,21.83,129.19,129.09,8.04]
[1766979368410,0.05330182,129.15,129.13,0.00185228]
[1766979369810,21.83,129.19,129.13,0.00185228]
[1766979370704,0.05531756,129.17,129.13,0.00185228]
[1766979370911,21.88531756,129.17,129.13,0.00185228]
[1766979371406,23.42531756,129.17,129.06,8.37]
[1766979371709,21.83,129.17,129.06,8.37]
[1766979372006,21.83,129.16,129.03,8.46]
[1766979372607,0.05951724,129.11,129.08,0.05416642]
[1766979372810,0.05951724,129.11,129.08,0.05605768]
[1766979373507,21.83,129.15,129.08,0.05605768]
[1766979373812,14.47801464,129.2,129.08,8.63605768]
[1766979373813,21.83,129.19,129.08,8.63605768]
[1766979374000,21.83,129.19,129.08,8.58]
[1766979374402,6.9735402,129.2,129.12,0.05783656]
[1766979374403,0.05495833,129.15,129.12,0.05783656]
[1766979374614,0.05495833,129.15,129.12,0.05891615]
[1766979375813,0.05495833,129.15,129.08,15.5593]
[1766979376012,0.05495833,129.15,129.06,8.88]
[1766979376213,21.83,129.17,129.06,8.88]
[1766979377015,0.05448356,129.13,129.1,0.05230786]
[1766979378121,0.05448356,129.13,129.1,0.00230786]
[1766979378417,6.9762,129.15,129.1,0.00230786]
[1766979378618,7.50447444,129.18,129.1,0.00230786]
[1766979378804,7.50447444,129.18,129.05,7.21187534]
[1766979379210,7.50447444,129.18,129.06,7.47721287]
[1766979379411,7.50447444,129.18,129.11,0.05804443]
[1766979379616,6.975,129.17,129.05,14.19287534]
[1766979379820,7.50447444,129.19,129.06,19.01]
[1766979380114,7.50447444,129.19,129.08,7.21187534]
[1766979380310,7.50447444,129.19,129.08,14.19127534]
[1766979380516,7.50447444,129.19,129.12,0.05712036]
[1766979380517,0.05888683,129.15,129.12,0.05712036]
[1766979380713,0.05888683,129.15,129.08,6.9794]
[1766979380910,22.21888683,129.15,129.06,14.19237534]
[1766979381110,22.21888683,129.15,129.0,14.42375069]
[1766979381111,22.16,129.15,129.02,21.41]
[1766979381314,22.16,129.15,129.03,29.10688773]
[1766979381516,22.16,129.15,129.05,6.981]
[1766979381718,0.05580713,129.1,129.06,7.69688773]
[1766979381922,0.05580713,129.1,129.07,7.69688773]
[1766979382126,0.05580713,129.1,129.03,21.41]
[1766979382725,0.05580713,129.1,129.05,0.05460149]
[1766979384226,22.21580713,129.1,129.05,0.05460149]
[1766979387926,4.02e-05,129.2,129.05,21.46460149]
[1766979387927,22.16,129.14,129.05,21.46460149]
[1766979388229,22.16,129.14,129.05,21.41]
[1766979388432,16.34152119,129.14,129.04,21.41]
[1766979388927,0.05349133,129.1,129.08,0.05403215]
[1766979390616,0.05349133,129.1,129.08,0.00403215]
[1766979391926,22.21349133,129.1,129.01,21.41]
[1766979392133,22.16,129.1,129.01,21.41]
[1766979392636,22.16,129.1,129.02,6.9826]
[1766979392933,0.05920558,129.07,129.05,0.05267629]
[1766979393836,0.05920558,129.07,129.05,0.00267629]
[1766979394228,22.21920558,129.07,128.98,21.41]
[1766979394531,22.16,129.07,128.98,21.41]
[1766979394730,22.16,129.07,128.98,28.3949]
[1766979394935,22.16,129.07,128.98,21.41]
[1766979395135,0.05686874,129.04,129.01,0.05616362]
[1766979395636,22.16,129.1,129.01,0.05616362]
[1766979395841,22.16,129.08,129.0,21.41]
[1766979396539,0.05291626,129.05,129.03,0.05652682]
[1766979397132,0.05291626,129.05,129.01,6.983]
[1766979397939,0.05291626,129.05,128.99,21.41]
[1766979398136,0.05291626,129.05,129.02,0.05859665]
[1766979408541,0.05291626,129.05,129.02,7.04119665]
[1766979408732,22.16,129.08,129.02,7.04119665]
[1766979409649,0.05382974,129.06,129.02,7.04119665]
[1766979411048,0.05382974,129.06,129.02,31.44119665]
[1766979411349,0.00382974,129.06,129.03,31.3822]
[1766979411645,0.00382974,129.06,129.03,24.4]
[1766979411844,0.00382974,129.06,129.04,31.3817]
[1766979412044,24.64,129.13,129.05,24.4]
[1766979412045,6.07472816,129.12,129.05,24.4]
[1766979412250,30.71472816,129.12,129.03,24.4]
[1766979412447,30.71764506,129.11,129.03,31.382]
[1766979412649,24.64,129.11,129.03,31.382]
[1766979413048,0.05571014,129.08,129.06,0.04893632]
[1766979414349,0.05571014,129.08,129.01,31.3832]
[1766979414652,24.64,129.09,129.01,31.3832]
[1766979415347,24.64,129.09,129.04,0.05465062]
[1766979416451,6.1484766,129.08,129.04,0.05465062]
[1766979417451,23.88,129.07,129.0,6.9837]
[1766979418147,23.88,129.07,128.99,23.52]
[1766979418346,6.09471619,129.06,128.99,23.52]
[1766979418551,0.05005035,129.04,129.01,0.04915897]
[1766979420748,5.035e-05,129.04,129.01,23.56915897]
[1766979420956,6.09344439,129.08,129.01,23.56915897]
[1766979421258,29.97344439,129.1,129.01,23.52]
[1766979421457,6.09344439,129.09,129.03,30.5019]
[1766979421652,23.88,129.1,129.03,23.52]
[1766979422054,0.05253566,129.08,129.05,7.03003143]
[1766979422554,0.05253566,129.08,129.05,0.04893143]
[1766979425965,23.93253566,129.08,128.97,33.16894033]
[1766979426156,23.88,129.06,128.97,23.52]
[1766979426358,23.88,129.06,128.97,30.5054]
[1766979426552,23.88,129.04,128.97,30.5054]
[1766979426862,0.05746895,129.02,128.99,0.0547688]
[1766979428561,0.05746895,129.02,128.99,7.0390688]
[1766979428762,23.88,129.06,128.99,0.0547688]
[1766979428967,23.88,129.06,128.99,23.52]
[1766979429558,23.88,129.06,129.01,6.9833]
[1766979429758,0.05528887,129.05,129.02,0.05368305]
[1766979430162,0.05528887,129.05,129.02,0.00368305]
[1766979430368,23.88,129.09,129.02,0.00368305]
[1766979430664,23.88,129.09,129.01,23.52]
[1766979430865,23.88,129.09,129.03,6.9822]
[1766979431468,0.05663346,129.07,129.05,0.00178603]
[1766979453078,25.11663346,129.07,129.01,0.00328463]
[1766979453375,25.06,129.07,129.01,0.00328463]
[1766979454181,0.0544183,129.05,129.03,0.05689509]
[1766979454681,0.0544183,129.05,129.0,6.9839]
[1766979455382,25.1144183,129.05,129.0,6.9839]
[1766979455570,25.1144183,129.05,129.01,0.05885555]
[1766979455775,25.11477423,129.04,128.98,6.9847]
[1766979455974,25.06,129.04,128.98,6.9847]
[1766979456683,0.05641347,129.02,129.0,0.05531617]
[1766979456882,0.05641347,129.02,128.98,6.9847]
[1766979457076,25.11641347,129.02,128.94,9.64894033]
[1766979457276,30.98199533,129.01,128.93,25.04]
[1766979457475,25.06,129.01,128.93,25.04]
[1766979457878,25.06,129.01,128.96,0.05758305]
[1766979458582,12.1275,129.01,128.96,0.05758305]
[1766979458985,0.05166915,129.0,128.97,6.9853]
[1766979459885,0.05166915,129.0,128.96,0.05758305]
[1766979460274,5.91437906,129.07,128.96,26.72758305]
[1766979460481,25.25,129.06,128.96,26.67]
[1766979460683,19.19505945,129.08,128.96,26.67]
[1766979460684,25.25,129.04,128.96,26.67]
[1766979460881,31.16437906,129.03,128.96,26.67]
[1766979461073,25.25,129.03,128.96,26.67]
[1766979461278,0.05052431,129.01,128.98,0.05834934]
[1766979461885,14.16902999,129.11,128.98,26.72834934]
[1766979462088,5.91273405,129.1,128.98,26.67]
[1766979462780,5.91273405,129.1,128.95,21.86399978]
[1766979462781,0.05519008,129.05,129.03,7.03239963]
[1766979462982,0.05268037,129.05,129.03,7.03239963]
[1766979463685,0.05268037,129.05,129.03,0.05019963]
[1766979463882,0.05268037,129.05,129.03,0.00019963]
[1766979464187,7.86670459,129.11,129.03,0.00019963]
[1766979464188,1.95397054,129.11,129.03,0.00019963]
[1766979464389,1.95397054,129.11,129.0,26.67]
[1766979464589,1.95397054,129.11,129.04,6.9817]
[1766979465289,0.05553492,129.09,129.06,0.0043586]
[1766979466189,13.33553492,129.09,129.06,0.0043586]
[1766979468391,13.33553492,129.09,129.0,33.6536]
[1766979468587,13.28,129.09,129.0,33.6536]
[1766979469276,0.0510215,129.06,129.03,0.05526131]
[1766979471889,13.85,129.11,129.05,2.80567853]
[1766979472282,13.85,129.11,129.03,2.80567853]
[1766979472582,13.85,129.11,129.03,9.78777853]
[1766979472786,13.85,129.11,129.03,34.24777853]
[1766979472986,0.05851784,129.08,129.06,0.05910753]
[1766979480595,14.64851784,129.08,129.02,6.9825]
[1766979480792,14.59,129.08,129.02,6.9825]
[1766979481494,0.05291644,129.06,129.04,0.05627483]
[1766979483999,0.00291644,129.06,129.05,2.80567853]
[1766979484201,20.86262567,129.11,129.05,2.80567853]
[1766979484392,14.96,129.11,129.05,2.80567853]
[1766979484796,5.90223904,129.1,129.04,27.04]
[1766979485102,0.05602908,129.08,129.06,0.05592178]
[1766979486293,0.05602908,129.08,129.03,2.80567853]
[1766979487199,0.05602908,129.08,129.04,0.05624659]
[1766979488005,15.27602908,129.08,129.04,0.05624659]
[1766979488202,2.80567853,129.07,129.0,27.04]
[1766979488398,15.16,129.06,129.0,27.04]
[1766979488603,15.16,129.06,128.98,29.84567853]
[1766979488806,5.90466774,129.05,128.98,34.0248]
[1766979489003,21.14466774,129.05,128.98,34.0248]
[1766979489205,0.05523426,129.03,129.0,0.04947338]
[1766979489402,15.29523426,129.03,128.96,34.0258]
[1766979490403,18.10091279,129.03,128.98,0.05795281]
[1766979490601,15.29523426,129.03,128.98,0.05795281]
[1766979490800,18.14567853,129.02,128.98,0.05795281]
[1766979491509,15.34,129.02,128.98,0.05795281]
[1766979493001,2.86091279,129.03,128.98,0.05795281]
[1766979493207,0.05523426,129.03,128.98,0.05795281]
[1766979493706,15.61,129.1,129.01,29.84567853]
[1766979493911,24.31223193,129.09,129.01,27.04]
[1766979494109,5.8965534,129.08,129.01,27.04]
[1766979494413,21.5065534,129.08,129.01,27.04]
[1766979494612,15.61,129.08,129.01,27.04]
[1766979494905,0.05080355,129.06,129.03,0.05835441]
[1766979497614,0.00080355,129.06,129.03,31.30403294]
[1766979497809,2.80567853,129.11,129.03,31.30403294]
[1766979498004,18.84567853,129.11,129.03,31.24567853]
[1766979498210,21.93602714,129.1,129.03,31.24567853]
[1766979498403,16.04,129.1,129.03,31.24567853]
[1766979498603,16.04,129.1,129.03,28.44]
[1766979498802,0.05182511,129.08,129.05,0.05199302]
[1766979501120,16.28182511,129.08,129.05,0.00199302]
[1766979501624,0.05182511,129.08,129.05,0.00199302]
[1766979504220,16.42182511,129.08,129.05,0.00199302]
[1766979504419,19.22750364,129.08,129.01,28.44]
[1766979505117,0.05182511,129.08,128.99,28.44]
[1766979505320,5.90117306,129.14,129.06,2.80567853]
[1766979505520,5.90117306,129.14,129.09,28.49625723]
[1766979505521,0.00117306,129.14,129.09,28.49625723]
[1766979505715,0.00117306,129.16,129.09,31.30193576]
[1766979505915,22.34,129.17,129.1,2.80567853]
[1766979506209,0.05336542,129.14,129.1,2.80567853]
[1766979506409,0.05336542,129.14,129.12,0.0530263]
[1766979507320,0.00336542,129.14,129.12,0.0530263]
[1766979508118,0.00336542,129.14,129.07,31.24567853]
[1766979508322,25.36567853,129.15,129.07,28.44]
[1766979509014,0.05759123,129.12,129.05,2.80567853]
[1766979509216,22.63759123,129.12,129.04,28.44]
[1766979509417,22.58,129.12,129.04,28.44]
[1766979510122,0.05818652,129.09,129.07,0.05357076]
[1766979517522,23.18,129.17,129.08,31.24567853]
[1766979517722,5.7952096,129.16,129.08,31.24567853]
[1766979517928,23.18,129.17,129.08,31.24567853]
[1766979518429,0.05375154,129.14,129.11,0.05853161]
[1766979523720,23.60375154,129.14,129.08,2.80567853]
[1766979523923,23.60375154,129.14,129.07,28.44]
[1766979524735,23.60375154,129.14,129.09,0.0547748]
[1766979525524,23.60375154,129.14,129.09,0.0047748]
[1766979525726,26.40943007,129.14,129.09,0.0047748]
[1766979528035,23.60375154,129.14,129.09,0.0047748]
[1766979528335,26.40943007,129.14,129.09,0.0047748]
[1766979528536,23.60375154,129.14,129.09,0.0047748]
[1766979540640,0.05375154,129.14,129.09,29.7847748]
[1766979543248,0.00375154,129.14,129.09,29.7847748]
[1766979545250,24.85375154,129.14,129.09,0.0047748]
[1766979546560,0.00375154,129.14,129.09,0.0047748]
[1766979547442,5.75184867,129.14,129.09,0.0047748]
[1766979547644,30.73184867,129.14,129.05,36.98061831]
[1766979547854,30.72809713,129.13,129.05,29.78]
[1766979548052,30.72809713,129.12,129.05,29.78]
[1766979548255,5.74809713,129.11,129.05,29.78]
[1766979548653,0.05835826,129.09,129.07,0.0579898]
[1766979548855,24.98,129.12,129.07,0.0579898]
[1766979549363,25.08,129.15,129.07,29.8379898]
[1766979549658,25.08,129.15,129.07,29.78]
[1766979549859,0.05054969,129.12,129.1,0.05733462]
[1766979550463,0.00054969,129.12,129.1,0.05733462]
[1766979552062,0.00054969,129.12,129.1,29.83733462]
[1766979552266,5.75035778,129.16,129.1,29.83733462]
[1766979552558,31.00035778,129.18,129.1,29.83733462]
[1766979552865,31.05035778,129.17,129.1,29.78]
[1766979553161,0.0537957,129.15,129.12,0.05726147]
[1766979559472,0.0037957,129.15,129.12,29.33726147]
[1766979559971,0.0037957,129.15,129.12,0.05726147]
[1766979560463,5.75570211,129.15,129.12,0.05726147]
[1766979560973,0.0037957,129.15,129.12,0.05726147]
[1766979562070,0.0037957,129.15,129.09,29.28]
[1766979562574,5.75570211,129.15,129.09,29.28]
[1766979562769,5.75904778,129.15,129.09,29.28]
[1766979563162,5.75904778,129.15,129.11,0.05726358]
[1766979564172,0.0037957,129.15,129.11,0.05726358]
[1766979569577,0.0037957,129.15,129.11,29.33726358]
[1766979573972,0.0037957,129.15,129.11,0.05726358]
[1766979574380,5.75904778,129.15,129.11,0.05726358]
[1766979574774,27.74,129.19,129.12,29.28]
[1766979575281,27.74,129.18,129.12,29.28]
[1766979575680,0.05706292,129.16,129.14,0.05875134]
[1766979577386,27.7400402,129.2,129.14,0.05875134]
[1766979578183,4.02e-05,129.2,129.16,29.28]
[1766979579389,0.05499221,129.19,129.17,0.04930283]